fUSD/lending_fUSD_20260511
["ID","MTS","AMOUNT","RATE_DAILY","PERIOD"]
[421993812,1778428862000,50794.0,0.00040995,120]
[421993814,1778428931000,500.0,0.00040995,120]
[421993815,1778428938000,153.34908765,0.00040995,120]
[421993816,1778428959000,264.45,0.00025539,120]
[421993817,1778429224000,500.0,0.00040996,120]
[421993818,1778429313000,500.0,0.00040996,120]
[421993819,1778429319000,500.0,0.00040996,120]
[421993820,1778429324000,1000.0,0.00040996,120]
[421993821,1778429330000,250.0,0.00040996,120]
[421993822,1778429334000,250.0,0.00040996,120]
[421993823,1778429336000,250.0,0.00040996,120]
[421993824,1778429337000,250.0,0.00040996,120]
[421993825,1778429350000,1156.0,0.00040996,120]
[421993826,1778429353000,28877.21539487,0.00040996,120]
[421993827,1778429357000,1000.0,0.00040996,120]
[421993828,1778429358000,1000.0,0.00040996,120]
[421993830,1778429363000,-523.87,0.000107,2]
[421993829,1778429363000,-11125.45241099,0.000107,2]
[421993833,1778429363000,-14.22986937,0.0001177,2]
[421993831,1778429363000,-250.0,0.0001085,2]
[421993832,1778429363000,-579.49007644,0.00011,2]
[421993835,1778429374000,-128.68244585,0.00012305,2]
[421993834,1778429374000,-235.77013063,0.0001177,2]
[421993846,1778429432000,-295.31587663,0.00014098,2]
[421993842,1778429432000,-150.0,0.00013818,2]
[421993843,1778429432000,-174.63,0.0001391,2]
[421993844,1778429432000,-1200.0,0.00014098,2]
[421993845,1778429432000,-2.68412337,0.00014098,2]
[421993847,1778429432000,-12650.01780637,0.00014099,2]
[421993841,1778429432000,-45.93755415,0.00012305,2]
[421993850,1778429432000,-150.0,0.00014099,2]
[421993849,1778429432000,-21232.56304927,0.00014099,2]
[421993851,1778429432000,-4973.2524,0.000141,2]
[421993852,1778429432000,-2000.0,0.000141,2]
[421993848,1778429432000,-3334.48114436,0.00014099,2]
[421993853,1778429432000,-2500.0,0.000141,2]
[421993854,1778429432000,-500.0,0.00014199,2]
[421993855,1778429432000,-62363.20013263,0.000142,2]
[421993893,1778429438000,-2339.5,0.000142,2]
[421993892,1778429438000,-25739.58413361,0.000142,2]
[421993890,1778429438000,-3421.07385026,0.000142,2]
[421993891,1778429438000,-766.37142018,0.000142,2]
[421993897,1778429440000,-692.3069563,0.000142,2]
[421993938,1778429446000,-151.0,0.00014991,2]
[421993935,1778429446000,-151.0,0.00014991,2]
[421993932,1778429446000,-151.0,0.00014991,2]
[421993930,1778429446000,-151.0,0.00014991,2]
[421993931,1778429446000,-151.0,0.00014991,2]
[421993939,1778429446000,-151.0,0.00014991,2]
[421993934,1778429446000,-151.0,0.00014991,2]
[421993929,1778429446000,-2130.41189074,0.000149,2]
[421993928,1778429446000,-169.123,0.000147,2]
[421993927,1778429446000,-2084.671,0.000147,2]
[421993923,1778429446000,-999.99,0.00014299,2]
[421993917,1778429446000,-9999.99,0.000142,2]
[421993925,1778429446000,-506.67968673,0.00014299,2]
[421993926,1778429446000,-1189.59480792,0.000146,2]
[421993924,1778429446000,-1324.75,0.00014299,2]
[421993921,1778429446000,-500.0,0.00014299,2]
[421993919,1778429446000,-500.0,0.00014299,2]
[421993918,1778429446000,-500.0,0.00014299,2]
[421993920,1778429446000,-500.0,0.00014299,2]
[421993916,1778429446000,-1214.79,0.000142,2]
[421993915,1778429446000,-245.0887,0.000142,2]
[421993937,1778429446000,-151.0,0.00014991,2]
[421993933,1778429446000,-151.0,0.00014991,2]
[421993936,1778429446000,-151.0,0.00014991,2]
[421993922,1778429446000,-61402.19,0.00014299,2]
[421993943,1778429446000,-151.0,0.00014991,2]
[421993964,1778429446000,-1200.43206916,0.00015,2]
[421993962,1778429446000,-432.29918405,0.000141,2]
[421993961,1778429446000,-12105.88709896,0.000141,2]
[421993959,1778429446000,-722.79952,0.00015,2]
[421993960,1778429446000,-3129.11213903,0.00015,2]
[421993958,1778429446000,-3793.52173783,0.00015,2]
[421993955,1778429446000,-176.10339981,0.00014999,2]
[421993963,1778429446000,-360.50031699,0.000141,2]
[421993954,1778429446000,-500.0,0.00014999,2]
[421993957,1778429446000,-8467.71820817,0.00015,2]
[421993953,1778429446000,-399.09149979,0.00014999,2]
[421993956,1778429446000,-163659.45529053,0.00015,2]
[421993951,1778429446000,-500.0,0.00014999,2]
[421993950,1778429446000,-500.0,0.00014999,2]
[421993947,1778429446000,-151.0,0.00014991,2]
[421993949,1778429446000,-151.0,0.00014991,2]
[421993948,1778429446000,-151.0,0.00014991,2]
[421993944,1778429446000,-151.0,0.00014991,2]
[421993945,1778429446000,-151.0,0.00014991,2]
[421993940,1778429446000,-151.0,0.00014991,2]
[421993941,1778429446000,-151.0,0.00014991,2]
[421993942,1778429446000,-151.0,0.00014991,2]
[421993952,1778429446000,-500.0,0.00014999,2]
[421993946,1778429446000,-151.0,0.00014991,2]
[421993970,1778429532000,499.1,0.00040998,120]
[421993972,1778429702000,204.07,0.00026258,120]
[421993973,1778429707000,166.38,8.552e-05,2]
[421993974,1778429824000,501.68,0.00040997,120]
[421993994,1778430128000,200.0,0.00040998,120]
[421993998,1778430333000,-45.38089088,0.00011856,2]
[421993997,1778430333000,-166.38,0.00011291,2]
[421994002,1778430446000,-167.09511924,0.00013099,2]
[421994004,1778430446000,-340.24660934,0.00013721,2]
[421994003,1778430446000,-166.66,0.00013699,2]
[421994001,1778430446000,-250.0,0.0001242,2]
[421994000,1778430446000,-207.11933784,0.0001242,2]
[421993999,1778430446000,-204.61910912,0.00011856,2]
[421994006,1778430519000,3000.31888,0.00027,120]
[421994007,1778430554000,-162.83592612,0.00013287,2]
[421994008,1778430581000,177.59,6.688e-05,2]
[421994009,1778430582000,177.59,8.83e-05,2]
[421994023,1778430632000,-425.19,0.00013793,2]
[421994022,1778430632000,-371.89,0.00013793,2]
[421994021,1778430632000,-159.75339066,0.00013721,2]
[421994016,1778430632000,-749.58407388,0.00013287,2]
[421994017,1778430632000,-6177.65183422,0.000135,2]
[421994012,1778430632000,-177.59,0.00010972,2]
[421994013,1778430632000,-200.0,0.00013075,2]
[421994015,1778430632000,-1005.17,0.00013146,2]
[421994019,1778430632000,-201.3922352,0.00013693,2]
[421994018,1778430632000,-912.42,0.00013619,2]
[421994014,1778430632000,-177.59,0.00013114,2]
[421994020,1778430632000,-300.0,0.00013707,2]
[421994025,1778430632000,-166.66,0.00013836,2]
[421994026,1778430632000,-1200.0,0.00013846,2]
[421994024,1778430632000,-6055.63,0.00013793,2]
[421994039,1778430632000,-318.81172809,0.00013999,2]
[421994037,1778430632000,-82789.63146089,0.00013999,2]
[421994038,1778430632000,-1254.41808677,0.00013999,2]
[421994030,1778430632000,-150.0,0.00013937,2]
[421994034,1778430632000,-2500.0,0.00013999,2]
[421994036,1778430632000,-200518.35942595,0.00013999,2]
[421994033,1778430632000,-850.849,0.00013999,2]
[421994032,1778430632000,-166.66,0.00013973,2]
[421994031,1778430632000,-912.42,0.00013951,2]
[421994027,1778430632000,-2341.9,0.00013847,2]
[421994028,1778430632000,-227.81,0.00013847,2]
[421994029,1778430632000,-910.94,0.00013936,2]
[421994035,1778430632000,-39955.48343159,0.00013999,2]
[421994208,1778430638000,-500.0,0.00014098,2]
[421994205,1778430638000,-153.71630352,0.0001409,2]
[421994213,1778430638000,-500.0,0.00014099,2]
[421994210,1778430638000,-500.0,0.00014098,2]
[421994206,1778430638000,-1000.0,0.00014098,2]
[421994224,1778430638000,-500.0,0.00014099,2]
[421994202,1778430638000,-151.0,0.0001409,2]
[421994211,1778430638000,-250.0,0.00014098,2]
[421994207,1778430638000,-500.0,0.00014098,2]
[421994209,1778430638000,-500.0,0.00014098,2]
[421994214,1778430638000,-500.0,0.00014099,2]
[421994204,1778430638000,-151.0,0.0001409,2]
[421994212,1778430638000,-160.20407546,0.00014098,2]
[421994203,1778430638000,-2080.17592889,0.0001409,2]
[421994191,1778430638000,-150.0,0.00014089,2]
[421994195,1778430638000,-151.0,0.0001409,2]
[421994198,1778430638000,-151.0,0.0001409,2]
[421994197,1778430638000,-151.0,0.0001409,2]
[421994199,1778430638000,-151.0,0.0001409,2]
[421994192,1778430638000,-151.0,0.0001409,2]
[421994194,1778430638000,-151.0,0.0001409,2]
[421994196,1778430638000,-151.0,0.0001409,2]
[421994193,1778430638000,-151.0,0.0001409,2]
[421994190,1778430638000,-2292.51584868,0.00014003,2]
[421994200,1778430638000,-151.0,0.0001409,2]
[421994189,1778430638000,-250.0,0.00014,2]
[421994188,1778430638000,-102123.43386671,0.00013999,2]
[421994223,1778430638000,-500.0,0.00014099,2]
[421994201,1778430638000,-151.0,0.0001409,2]
[421994221,1778430638000,-500.0,0.00014099,2]
[421994216,1778430638000,-500.0,0.00014099,2]
[421994218,1778430638000,-500.0,0.00014099,2]
[421994226,1778430638000,-500.0,0.00014099,2]
[421994241,1778430638000,-500.0,0.00014099,2]
[421994250,1778430638000,-500.0,0.00014099,2]
[421994247,1778430638000,-500.0,0.00014099,2]
[421994251,1778430638000,-500.0,0.00014099,2]
[421994244,1778430638000,-500.0,0.00014099,2]
[421994243,1778430638000,-500.0,0.00014099,2]
[421994242,1778430638000,-500.0,0.00014099,2]
[421994236,1778430638000,-500.0,0.00014099,2]
[421994234,1778430638000,-500.0,0.00014099,2]
[421994235,1778430638000,-500.0,0.00014099,2]
[421994237,1778430638000,-500.0,0.00014099,2]
[421994233,1778430638000,-500.0,0.00014099,2]
[421994238,1778430638000,-500.0,0.00014099,2]
[421994249,1778430638000,-500.0,0.00014099,2]
[421994239,1778430638000,-500.0,0.00014099,2]
[421994232,1778430638000,-500.0,0.00014099,2]
[421994246,1778430638000,-500.0,0.00014099,2]
[421994217,1778430638000,-500.0,0.00014099,2]
[421994227,1778430638000,-169.21328639,0.00014099,2]
[421994220,1778430638000,-500.0,0.00014099,2]
[421994225,1778430638000,-500.0,0.00014099,2]
[421994215,1778430638000,-500.0,0.00014099,2]
[421994222,1778430638000,-500.0,0.00014099,2]
[421994229,1778430638000,-443.2192033,0.00014099,2]
[421994230,1778430638000,-500.0,0.00014099,2]
[421994240,1778430638000,-500.0,0.00014099,2]
[421994231,1778430638000,-500.0,0.00014099,2]
[421994228,1778430638000,-537.93328249,0.00014099,2]
[421994219,1778430638000,-500.0,0.00014099,2]
[421994280,1778430639000,-500.0,0.00014099,2]
[421994256,1778430639000,-500.0,0.00014099,2]
[421994277,1778430639000,-500.0,0.00014099,2]
[421994279,1778430639000,-500.0,0.00014099,2]
[421994269,1778430639000,-196.4507345,0.00014099,2]
[421994264,1778430639000,-500.0,0.00014099,2]
[421994265,1778430639000,-500.0,0.00014099,2]
[421994267,1778430639000,-500.0,0.00014099,2]
[421994260,1778430639000,-500.0,0.00014099,2]
[421994253,1778430639000,-500.0,0.00014099,2]
[421994263,1778430639000,-500.0,0.00014099,2]
[421994261,1778430639000,-500.0,0.00014099,2]
[421994266,1778430639000,-500.0,0.00014099,2]
[421994258,1778430639000,-500.0,0.00014099,2]
[421994257,1778430639000,-500.0,0.00014099,2]
[421994255,1778430639000,-500.0,0.00014099,2]
[421994254,1778430639000,-500.0,0.00014099,2]
[421994252,1778430639000,-500.0,0.00014099,2]
[421994272,1778430639000,-500.0,0.00014099,2]
[421994262,1778430639000,-500.0,0.00014099,2]
[421994281,1778430639000,-500.0,0.00014099,2]
[421994273,1778430639000,-500.0,0.00014099,2]
[421994270,1778430639000,-500.0,0.00014099,2]
[421994294,1778430639000,-2383.59379838,0.000141,2]
[421994295,1778430639000,-25739.58413361,0.000141,2]
[421994286,1778430639000,-500.0,0.00014099,2]
[421994293,1778430639000,-6286.78494904,0.000141,2]
[421994291,1778430639000,-500.0,0.00014099,2]
[421994289,1778430639000,-500.0,0.00014099,2]
[421994290,1778430639000,-500.0,0.00014099,2]
[421994292,1778430639000,-2000.0,0.000141,2]
[421994287,1778430639000,-350.0,0.00014099,2]
[421994285,1778430639000,-500.0,0.00014099,2]
[421994284,1778430639000,-500.0,0.00014099,2]
[421994288,1778430639000,-500.0,0.00014099,2]
[421994278,1778430639000,-500.0,0.00014099,2]
[421994271,1778430639000,-500.0,0.00014099,2]
[421994274,1778430639000,-500.0,0.00014099,2]
[421994276,1778430639000,-500.0,0.00014099,2]
[421994282,1778430639000,-500.0,0.00014099,2]
[421994283,1778430639000,-500.0,0.00014099,2]
[421994275,1778430639000,-500.0,0.00014099,2]
[421994268,1778430639000,-500.0,0.00014099,2]
[421994341,1778430640000,-1124.0615707,0.000141,2]
[421994354,1778430643000,-23.5287976,0.000141,2]
[421994370,1778430646000,-533.70462055,0.00014751,2]
[421994385,1778430646000,-500.0,0.00014999,2]
[421994372,1778430646000,-3168.2303763,0.00014757,2]
[421994371,1778430646000,-200.0,0.00014751,2]
[421994368,1778430646000,-150.0,0.00014748,2]
[421994379,1778430646000,-1805.88516606,0.0001489,2]
[421994374,1778430646000,-7156.17876862,0.00014757,2]
[421994376,1778430646000,-12596.81593832,0.00014769,2]
[421994378,1778430646000,-1005.17,0.00014789,2]
[421994377,1778430646000,-38030.38973768,0.00014769,2]
[421994362,1778430646000,-912.42,0.00014283,2]
[421994375,1778430646000,-31237.1085302,0.00014757,2]
[421994366,1778430646000,-912.42,0.00014615,2]
[421994358,1778430646000,-254.12470683,0.000141,2]
[421994367,1778430646000,-2157.14243826,0.00014638,2]
[421994373,1778430646000,-7108.33711368,0.00014757,2]
[421994369,1778430646000,-1966.29537945,0.00014751,2]
[421994363,1778430646000,-500.0,0.00014299,2]
[421994364,1778430646000,-500.0,0.00014299,2]
[421994361,1778430646000,-166.66,0.00014247,2]
[421994359,1778430646000,-228.86503912,0.00014103,2]
[421994357,1778430646000,-7240.50949073,0.000141,2]
[421994381,1778430646000,-244.18862787,0.0001499,2]
[421994360,1778430646000,-166.66,0.0001411,2]
[421994355,1778430646000,-4831.2824,0.00013999,2]
[421994356,1778430646000,-46184.23145311,0.000141,2]
[421994365,1778430646000,-166.66,0.00014384,2]
[421994382,1778430646000,-207.74610084,0.00014999,2]
[421994405,1778430646000,-500.0,0.00014999,2]
[421994383,1778430646000,-500.0,0.00014999,2]
[421994380,1778430646000,-393.97571776,0.000149,2]
[421994412,1778430646000,-500.0,0.00014999,2]
[421994411,1778430646000,-500.0,0.00014999,2]
[421994410,1778430646000,-429.05238357,0.00014999,2]
[421994409,1778430646000,-500.0,0.00014999,2]
[421994408,1778430646000,-500.0,0.00014999,2]
[421994407,1778430646000,-500.0,0.00014999,2]
[421994404,1778430646000,-500.0,0.00014999,2]
[421994403,1778430646000,-500.0,0.00014999,2]
[421994402,1778430646000,-388.42768939,0.00014999,2]
[421994406,1778430646000,-500.0,0.00014999,2]
[421994400,1778430646000,-500.0,0.00014999,2]
[421994394,1778430646000,-539.16316336,0.00014999,2]
[421994401,1778430646000,-630.64592759,0.00014999,2]
[421994393,1778430646000,-500.0,0.00014999,2]
[421994384,1778430646000,-374.1000518,0.00014999,2]
[421994386,1778430646000,-500.0,0.00014999,2]
[421994388,1778430646000,-155.0,0.00014999,2]
[421994399,1778430646000,-500.0,0.00014999,2]
[421994391,1778430646000,-351.54301773,0.00014999,2]
[421994396,1778430646000,-500.0,0.00014999,2]
[421994390,1778430646000,-500.0,0.00014999,2]
[421994389,1778430646000,-500.0,0.00014999,2]
[421994397,1778430646000,-500.0,0.00014999,2]
[421994387,1778430646000,-500.0,0.00014999,2]
[421994395,1778430646000,-500.0,0.00014999,2]
[421994392,1778430646000,-500.0,0.00014999,2]
[421994398,1778430646000,-500.0,0.00014999,2]
[421994414,1778430647000,-368.93680789,0.00014999,2]
[421994422,1778430647000,-437129.59725999,0.00015,2]
[421994421,1778430647000,-42.98988168,0.00015,2]
[421994415,1778430647000,-161.17831685,0.00014999,2]
[421994423,1778430647000,-16661.01755607,0.00015,2]
[421994417,1778430647000,-205.88223055,0.00014999,2]
[421994419,1778430647000,-94.11776945,0.00014999,2]
[421994420,1778430647000,-666.0,0.00014999,2]
[421994413,1778430647000,-500.0,0.00014999,2]
[421994449,1778431751000,-974.0,0.00013825,2]
[421994448,1778431751000,-974.0,0.00013825,2]
[421994447,1778431751000,-974.0,0.00013825,2]
[421994446,1778431751000,-974.0,0.00013825,2]
[421994444,1778431751000,-379.66092149,0.00013825,2]
[421994442,1778431751000,-500.0,0.00013825,2]
[421994443,1778431751000,-500.0,0.00013825,2]
[421994440,1778431751000,-500.0,0.00013825,2]
[421994439,1778431751000,-500.0,0.00013825,2]
[421994438,1778431751000,-150.0,0.00013824,2]
[421994435,1778431751000,-344.03133195,0.0001377,2]
[421994436,1778431751000,-500.0,0.00013799,2]
[421994437,1778431751000,-186.0,0.00013824,2]
[421994434,1778431751000,-200.0,0.0001377,2]
[421994433,1778431751000,-163.31,0.00013731,2]
[421994432,1778431751000,-166.66,0.00013699,2]
[421994450,1778431751000,-974.0,0.00013825,2]
[421994441,1778431751000,-500.0,0.00013825,2]
[421994451,1778431751000,-974.0,0.00013825,2]
[421994445,1778431751000,-974.0,0.00013825,2]
[421994454,1778431751000,-974.0,0.00013825,2]
[421994470,1778431751000,-6793.3795,0.00013898,2]
[421994471,1778431751000,-692.422,0.00013899,2]
[421994469,1778431751000,-166.66,0.00013836,2]
[421994468,1778431751000,-989.09998628,0.00013825,2]
[421994467,1778431751000,-974.0,0.00013825,2]
[421994466,1778431751000,-974.0,0.00013825,2]
[421994465,1778431751000,-974.0,0.00013825,2]
[421994463,1778431751000,-974.0,0.00013825,2]
[421994464,1778431751000,-974.0,0.00013825,2]
[421994452,1778431751000,-974.0,0.00013825,2]
[421994460,1778431751000,-974.0,0.00013825,2]
[421994462,1778431751000,-974.0,0.00013825,2]
[421994457,1778431751000,-974.0,0.00013825,2]
[421994456,1778431751000,-974.0,0.00013825,2]
[421994453,1778431751000,-974.0,0.00013825,2]
[421994455,1778431751000,-974.0,0.00013825,2]
[421994461,1778431751000,-974.0,0.00013825,2]
[421994472,1778431751000,-2301.97318003,0.00013899,2]
[421994459,1778431751000,-974.0,0.00013825,2]
[421994458,1778431751000,-974.0,0.00013825,2]
[421994483,1778431752000,-500.0,0.00013997,2]
[421994489,1778431752000,-500.0,0.00013997,2]
[421994490,1778431752000,-500.0,0.00013997,2]
[421994488,1778431752000,-500.0,0.00013997,2]
[421994487,1778431752000,-500.0,0.00013997,2]
[421994486,1778431752000,-500.0,0.00013997,2]
[421994485,1778431752000,-430.59050346,0.00013997,2]
[421994484,1778431752000,-500.0,0.00013997,2]
[421994479,1778431752000,-500.0,0.00013997,2]
[421994481,1778431752000,-500.0,0.00013997,2]
[421994480,1778431752000,-500.0,0.00013997,2]
[421994478,1778431752000,-500.0,0.00013997,2]
[421994491,1778431752000,-500.0,0.00013997,2]
[421994477,1778431752000,-500.0,0.00013997,2]
[421994476,1778431752000,-1003.1,0.00013989,2]
[421994474,1778431752000,-2433.96744667,0.000139,2]
[421994475,1778431752000,-166.66,0.00013973,2]
[421994482,1778431752000,-500.0,0.00013997,2]
[421994492,1778431752000,-500.0,0.00013997,2]
[421994473,1778431752000,-2486.0974825,0.000139,2]
[421994495,1778431752000,-500.0,0.00013997,2]
[421994511,1778431752000,-500.0,0.00013997,2]
[421994512,1778431752000,-500.0,0.00013997,2]
[421994510,1778431752000,-500.0,0.00013997,2]
[421994506,1778431752000,-500.0,0.00013997,2]
[421994508,1778431752000,-500.0,0.00013997,2]
[421994505,1778431752000,-500.0,0.00013997,2]
[421994507,1778431752000,-500.0,0.00013997,2]
[421994503,1778431752000,-500.0,0.00013997,2]
[421994509,1778431752000,-500.0,0.00013997,2]
[421994504,1778431752000,-500.0,0.00013997,2]
[421994502,1778431752000,-500.0,0.00013997,2]
[421994493,1778431752000,-500.0,0.00013997,2]
[421994497,1778431752000,-500.0,0.00013997,2]
[421994496,1778431752000,-500.0,0.00013997,2]
[421994494,1778431752000,-500.0,0.00013997,2]
[421994498,1778431752000,-500.0,0.00013997,2]
[421994499,1778431752000,-500.0,0.00013997,2]
[421994500,1778431752000,-500.0,0.00013997,2]
[421994501,1778431752000,-500.0,0.00013997,2]
[421994524,1778431753000,-143.25580039,0.00013997,2]
[421994523,1778431753000,-500.0,0.00013997,2]
[421994521,1778431753000,-500.0,0.00013997,2]
[421994519,1778431753000,-500.0,0.00013997,2]
[421994520,1778431753000,-500.0,0.00013997,2]
[421994517,1778431753000,-500.0,0.00013997,2]
[421994518,1778431753000,-500.0,0.00013997,2]
[421994515,1778431753000,-224.25598723,0.00013997,2]
[421994514,1778431753000,-500.0,0.00013997,2]
[421994516,1778431753000,-500.0,0.00013997,2]
[421994513,1778431753000,-200.0,0.00013997,2]
[421994522,1778431753000,-500.0,0.00013997,2]
[421994526,1778431820000,29984.64849846,0.00041012,120]
[421994527,1778431831000,-2500.0,0.00013898,2]
[421994552,1778431831000,-500.0,0.00014099,2]
[421994553,1778431831000,-500.0,0.00014099,2]
[421994550,1778431831000,-500.0,0.00014099,2]
[421994551,1778431831000,-500.0,0.00014099,2]
[421994561,1778431831000,-166.66,0.00014384,2]
[421994549,1778431831000,-500.0,0.00014099,2]
[421994547,1778431831000,-126395.97988153,0.00013998,2]
[421994548,1778431831000,-250.0,0.00014,2]
[421994546,1778431831000,-28253.89331847,0.00013998,2]
[421994544,1778431831000,-500.0,0.00013998,2]
[421994542,1778431831000,-500.0,0.00013998,2]
[421994554,1778431831000,-500.0,0.00014099,2]
[421994545,1778431831000,-500.0,0.00013998,2]
[421994543,1778431831000,-500.0,0.00013998,2]
[421994540,1778431831000,-500.0,0.00013998,2]
[421994538,1778431831000,-501.07586597,0.00013998,2]
[421994541,1778431831000,-500.0,0.00013998,2]
[421994539,1778431831000,-500.0,0.00013998,2]
[421994537,1778431831000,-500.0,0.00013998,2]
[421994536,1778431831000,-500.0,0.00013998,2]
[421994535,1778431831000,-300.0,0.00013997,2]
[421994532,1778431831000,-500.0,0.00013997,2]
[421994534,1778431831000,-500.0,0.00013997,2]
[421994531,1778431831000,-500.0,0.00013997,2]
[421994530,1778431831000,-500.0,0.00013997,2]
[421994529,1778431831000,-356.74419961,0.00013997,2]
[421994533,1778431831000,-500.0,0.00013997,2]
[421994528,1778431831000,-58201.4301,0.00013898,2]
[421994555,1778431831000,-500.0,0.00014099,2]
[421994570,1778431831000,-6227.9560347,0.00014872,2]
[421994558,1778431831000,-166.66,0.0001411,2]
[421994560,1778431831000,-367.65,0.00014378,2]
[421994588,1778431831000,-2080.17592889,0.00014991,2]
[421994587,1778431831000,-178.0,0.00014944,2]
[421994583,1778431831000,-6697.3286998,0.00014872,2]
[421994585,1778431831000,-3058.3545052,0.00014872,2]
[421994582,1778431831000,-151.0,0.00014872,2]
[421994586,1778431831000,-173.36836109,0.000149,2]
[421994584,1778431831000,-151.0,0.00014872,2]
[421994579,1778431831000,-151.0,0.00014872,2]
[421994581,1778431831000,-19648.8800315,0.00014872,2]
[421994580,1778431831000,-151.0,0.00014872,2]
[421994576,1778431831000,-151.0,0.00014872,2]
[421994577,1778431831000,-151.0,0.00014872,2]
[421994575,1778431831000,-151.0,0.00014872,2]
[421994578,1778431831000,-2212.8177581,0.00014872,2]
[421994573,1778431831000,-86902.00765554,0.00014872,2]
[421994574,1778431831000,-151.0,0.00014872,2]
[421994556,1778431831000,-738.40101041,0.00014099,2]
[421994557,1778431831000,-500.06892776,0.00014099,2]
[421994559,1778431831000,-166.66,0.00014247,2]
[421994562,1778431831000,-200.0,0.00014417,2]
[421994563,1778431831000,-1737.36,0.00014604,2]
[421994565,1778431831000,-500.0,0.00014871,2]
[421994564,1778431831000,-500.0,0.00014871,2]
[421994568,1778431831000,-500.0,0.00014871,2]
[421994567,1778431831000,-536.57156268,0.00014871,2]
[421994566,1778431831000,-500.0,0.00014871,2]
[421994571,1778431831000,-27791.6819398,0.00014872,2]
[421994569,1778431831000,-24032.8394323,0.00014872,2]
[421994572,1778431831000,-42610.35924176,0.00014872,2]
[421994594,1778431832000,-500.0,0.00014999,2]
[421994601,1778431832000,-500.0,0.00014999,2]
[421994596,1778431832000,-500.0,0.00014999,2]
[421994598,1778431832000,-509.68714748,0.00014999,2]
[421994602,1778431832000,-500.0,0.00014999,2]
[421994595,1778431832000,-500.0,0.00014999,2]
[421994600,1778431832000,-500.0,0.00014999,2]
[421994597,1778431832000,-500.0,0.00014999,2]
[421994592,1778431832000,-500.0,0.00014999,2]
[421994590,1778431832000,-507.19084567,0.00014999,2]
[421994591,1778431832000,-500.0,0.00014999,2]
[421994604,1778431832000,-500.0,0.00014999,2]
[421994599,1778431832000,-500.0,0.00014999,2]
[421994589,1778431832000,-151.0,0.00014997,2]
[421994593,1778431832000,-500.0,0.00014999,2]
[421994603,1778431832000,-500.0,0.00014999,2]
[421994611,1778431832000,-284.83695705,0.00014999,2]
[421994613,1778431832000,-500.0,0.00014999,2]
[421994619,1778431832000,-500.0,0.00014999,2]
[421994618,1778431832000,-500.0,0.00014999,2]
[421994621,1778431832000,-58236.41142178,0.00015,2]
[421994616,1778431832000,-500.0,0.00014999,2]
[421994620,1778431832000,-27825.01319079,0.00015,2]
[421994612,1778431832000,-500.0,0.00014999,2]
[421994615,1778431832000,-285.70601658,0.00014999,2]
[421994609,1778431832000,-508.03542635,0.00014999,2]
[421994608,1778431832000,-500.0,0.00014999,2]
[421994605,1778431832000,-500.0,0.00014999,2]
[421994606,1778431832000,-500.0,0.00014999,2]
[421994607,1778431832000,-500.0,0.00014999,2]
[421994610,1778431832000,-500.0,0.00014999,2]
[421994614,1778431832000,-500.0,0.00014999,2]